Cogmind - Beta 17 @@@ ROGUE MODE // 2026.07.11 @ 09:07:54 Player: ldi (hl). (hl) Result: Destroyed by D-53 Grenadier with Mini Grenade Launcher Performance ------------- Evolutions (0) 0 Regions Visited (2) 400 Robots Destroyed (14) 70 Value Destroyed (422) 422 Prototype IDs (0) 0 Alien Tech Used (0) 0 Bonus (0) 0 TOTAL SCORE: 892 Bonus ------- None Cogmind --------- Core Integrity 0/250 Matter 300/300 Energy 97/100 System Corruption 0% Temperature Cool (0) Movement Core (50) Location -10/Mines Parts ------- > --- POWER (1) -------- (None) > --- PROPULSION (2) --- (None) > --- UTILITY (2) ------ (None) > --- WEAPON (2) ------- (None) > --- INVENTORY (5) ---- Light Nuclear Core Aluminum Leg Aluminum Leg Heat Sink Grenade Launcher Peak State ------------ > --- POWER ------------ Ion Engine > --- PROPULSION ------- Aluminum Leg Aluminum Leg > --- UTILITY ---------- Improved Heat Sink Small Storage Unit > --- WEAPON ----------- Medium Laser Small Laser > --- INVENTORY -------- Light Nuclear Core Light Nuclear Core Aluminum Leg Grenade Launcher Rocket Launcher [Rating: 10] Favorites ----------- Power Ion Engine Engine Ion Engine Propulsion Aluminum Leg Leg Aluminum Leg Utility Small Storage Unit Device Improved Heat Sink Storage Small Storage Unit Weapon Small Laser Energy Gun Small Laser Launcher Grenade Launcher Build | -11 -10 -10 ------- Run | Yrd Mat Min Slots Evolved . | . . . Power . | . . . Propulsion . | . . . Utility . | . . . Weapon . | . . . Parts Attached 13 | 7 4 2 Power 2 | 2 . . Engine 2 | 2 . . Core . | . . . Reactor . | . . . Propulsion 6 | 2 2 2 Treads . | . . . Leg 6 | 2 2 2 Wheel . | . . . Hover . | . . . Flight . | . . . Utility 2 | 1 1 . Device 1 | . 1 . Storage 1 | 1 . . Processor . | . . . Hackware . | . . . Protection . | . . . Artifact . | . . . Weapon 3 | 2 1 . Energy Gun 2 | 2 . . Energy Cannon . | . . . Ballistic Gun . | . . . Ballistic Cannon . | . . . Launcher 1 | . 1 . Special Weapon . | . . . Impact Weapon . | . . . Slashing Weapon . | . . . Piercing Weapon . | . . . Special Melee Weapon . | . . . Unidentified Prototypes . | . . . Parts Lost 6 | . . 6 Power 1 | . . 1 Propulsion 3 | . . 3 Utility . | . . . Weapon 2 | . . 2 Highest Loss Streak 5 | . . 5 To Critical Strikes . | . . . Average Backups 5 | . 2 6 Power 1 | . . 1 Propulsion 2 | . 1 2 Utility . | . . . Weapon 1 | . . 2 Tool/Special . | . . . Unused Backups 5 | . . 5 Power 2 | . . 2 Propulsion . | . . . Utility 1 | . . 1 Weapon 2 | . . 2 Tool/Special . | . . . Average Slot Usage (%) 96 | . 86 99 Engine 13 | . 14 13 Leg 28 | . 28 28 Device 11 | . 1 14 Storage 14 | . 14 14 Energy Gun 26 | . 21 27 Launcher 1 | . 6 . Peak Build Rating 10 | 6 9 10 Average Rating 8 | 4 6 9 On Entrance 5 | . 6 9 Avg Prop Armor Cover (%) . | . . . Naked Turns 3 | . . 3 Heaviest Build 14 | 13 14 14 Greatest Support 20 | 20 20 20 Greatest Overweight (x) . | . . . Average Overweight (x) . | . . . Largest Inventory Capacity 8 | 8 8 8 Average Capacity 7 | 7 8 7 Most Carried 8 | 1 4 8 Average Carried 5 | . 2 6 Final Capacity 8 | 8 8 5 Final Carried 5 | . 4 5 Class Distribution -------------------- 100% | Mutant Dominant Class ---------------- Mutant | -10/Materials Mutant | -10/Mines Resources | -11 -10 -10 ----------- Run | Yrd Mat Min Matter Collected 390 | 210 150 30 Remotely . | . . . Salvage Created 510 | . 304 206 Parts 32 | . 22 10 Haulers Intercepted . | . . . Recyclers Shooed 1 | . 1 . Parts Field Recycled . | . . . Retrieved Matter . | . . . Parts Self-Destructed . | . . . Prevented . | . . . Parts Restored . | . . . Kills | -11 -10 -10 ------- Run | Yrd Mat Min Combat Hostiles Destroyed 10 | . 6 4 Guns 7 | . 3 4 AOE 2 | . 2 . Classes Destroyed 4 | . 3 1 Worker 1 | . . 1 Builder 2 | . 2 . Recycler 1 | . 1 . Grunt 10 | . 6 4 Best Kill Streak 5 | . 5 4 Combat Bots Only 4 | . 4 3 Max Kills in Single Turn 1 | . 1 1 Gunslinging . | . . . Exploded 1 | . 1 . Melee . | . . . Uniques/NPCs Destroyed . | . . . Combat | -11 -10 -10 -------- Run | Yrd Mat Min Hostile Shots Fired 58 | . 21 37 Missed 14 | . 6 8 Hits 44 | . 15 29 Projectile 44 | . 15 29 AOE 12 | . . 12 Critical Strikes 2 | . 1 1 Damage Taken 911 | . 207 704 Core 252 | . 27 225 Absorbed by Shields . | . . . Core Remaining (%) 100 | 100 . . Volleys Fired 43 | . 18 25 Largest 2 | . 2 2 Hottest 90 | . 90 90 Shots Fired 82 | . 32 50 Gun 78 | . 28 50 Cannon . | . . . Launcher 4 | . 4 . Special . | . . . Kinetic . | . . . Thermal 78 | . 28 50 Explosive 4 | . 4 . Electromagnetic . | . . . Robot Hit Streak 11 | . 8 11 Robot Miss Streak 5 | . 1 5 Penetration Max . | . . . Secondary Targets . | . . . Shots Hit Robots 58 | . 24 34 Core Hits 30 | . 17 13 Critical Kills . | . . . Critical Parts Destroyed . | . . . Critical Strikes 1 | . 1 . Burn 1 | . 1 . Melee Attacks . | . . . Impact . | . . . Slashing . | . . . Piercing . | . . . Sneak Attacks . | . . . Combat Hostiles . | . . . Follow-up Attacks . | . . . Damage Inflicted 976 | . 564 412 Guns 678 | . 269 409 Cannons . | . . . Explosions 295 | . 295 . Melee . | . . . Ramming 3 | . . 3 Kinetic . | . . . Thermal 678 | . 269 409 Explosive 295 | . 295 . Electromagnetic . | . . . Impact . | . . . Slashing . | . . . Piercing . | . . . Highest Corruption . | . . . Average Corruption . | . . . Corruption Purged . | . . . Corruption Blocked . | . . . Overload Shots . | . . . Overflow Damage . | . . . Projectiles . | . . . Explosions . | . . . Melee . | . . . Knockbacks . | . . . Impact . | . . . Kinetic . | . . . Secondary . | . . . Self-Inflicted Damage . | . . . Shots . | . . . Rammed . | . . . Targets Rammed 1 | . . 1 Kicked 1 | . . 1 Crushed . | . . . Highest Temperature 216 | . 216 24 Average Temperature 69 | . 98 6 Received Heat Transfer 294 | . 138 156 Siege Activations . | . . . Martial Activations . | . . . Shielding Activations . | . . . Robots Disrupted . | . . . Combat Hostiles . | . . . Robots Corrupted . | . . . Combat Hostiles . | . . . Parts Fried . | . . . Impact Corruptions . | . . . Robots Melted 1 | . 1 . Combat Hostiles 1 | . 1 . Parts Melted 6 | . 4 2 Heat Transferred 1774 | . 732 1042 Parts Sabotaged . | . . . Parts Stolen . | . . . Parts Stripped . | . . . Power Chain Reactions . | . . . Alert | -11 -10 -10 ------- Run | Yrd Mat Min Maximum Alert Level . | . . . Low Security (%) 100 | 100 100 100 Level 1 . | . . . Level 2 . | . . . Level 3 . | . . . Level 4 . | . . . Level 5 . | . . . High Security . | . . . Max Security . | . . . Peak Influence 105 | . 105 85 Initial 25 | . . 25 Average 19 | . 49 12 Influence Increases 321 | . 186 135 Destroy 0b10 Robot/C 200 | . 120 80 Destroy 0b10 Robot/NC 20 | . 15 5 Destroy Leader 50 | . 30 20 Successful Hack 11 | . 11 . Destroy Structure 10 | . 10 . Lose Combat Pursuer 30 | . . 30 Influence Decreases 321 | . 121 200 Entered New Map 40 | . . 40 Time Decay 271 | . 121 150 Lost Part 10 | . . 10 Squads Dispatched . | . . . Investigation . | . . . Extermination . | . . . Reinforcement . | . . . Assault . | . . . Garrison . | . . . Intercept . | . . . Searches Triggered . | . . . Construction Impeded . | . . . Haulers Reinforced . | . . . Active Scanning Responses . | . . . Cargo Convoy Interrupts . | . . . Stealth | -11 -10 -10 --------- Run | Yrd Mat Min Distress Signals . | . . . Communications Jammed . | . . . Distress Signals . | . . . Times Spotted 15 | . 7 8 Peak Tracking Total 4 | . 3 4 Tactical Retreats 2 | . . 2 Traps | -11 -10 -10 ------- Run | Yrd Mat Min Traps Triggered . | . . . Indirectly . | . . . Trap Hack Attempts . | . . . Triggered . | . . . Disarmed . | . . . Reprogrammed . | . . . Reused . | . . . Traps Extracted . | . . . Installed . | . . . Triggered . | . . . Machines | -11 -10 -10 ---------- Run | Yrd Mat Min Machines Disabled . | . . . Max in Single Turn . | . . . Machines Repaired . | . . . Machines Dismantled . | . . . Machines Sabotaged . | . . . Overloaded Fab Kills . | . . . Hacking | -11 -10 -10 --------- Run | Yrd Mat Min Machines Accessed 1 | . 1 . Terminals 1 | . 1 . Fabricators . | . . . Repair Stations . | . . . Recycling Units . | . . . Scanalyzers . | . . . Garrison Access . | . . . Total Hacks 7 | . 7 . Successful 2 | . 2 . Failed 5 | . 5 . Catastrophic . | . . . Database Lockouts . | . . . Manual 7 | . 7 . Terminals 7 | . 7 . Fabricators . | . . . Repair Stations . | . . . Recycling Units . | . . . Scanalyzers . | . . . Garrison Access . | . . . Terminal Hacks 1 | . 1 . Robot Analysis 1 | . 1 . Fabricator Hacks . | . . . Repair Station Hacks . | . . . Recycling Unit Hacks . | . . . Scanalyzer . | . . . Garrison Access Hacks . | . . . Unauthorized Hacks 1 | . 1 . Terminals 1 | . 1 . Botnet 1 | . 1 . Fabricators . | . . . Repair Stations . | . . . Recycling Units . | . . . Scanalyzers . | . . . Garrison Access . | . . . Data Cores Recovered . | . . . Used . | . . . Hacking Detections 1 | . 1 . Full Trace Events 1 | . 1 . Feedback Events . | . . . Feedback Blocked . | . . . Robot Schematics Acquired . | . . . Robots Built . | . . . Authchips . | . . . Time . | . . . Total Robot Build Rating . | . . . Part Schematics Acquired . | . . . Parts Built . | . . . Authchips . | . . . Time . | . . . Total Part Build Rating . | . . . Part Studies Acquired . | . . . Parts Repaired . | . . . Time . | . . . Parts Recycled . | . . . Recycled Matter . | . . . Retrieved Matter . | . . . Retrieved Components . | . . . Parts Scanalyzed . | . . . Part Schematics Acquired . | . . . Parts Damaged . | . . . Bothacking | -11 -10 -10 ------------ Run | Yrd Mat Min Used RIF Installer . | . . . Robots Hacked . | . . . Non-combat . | . . . Combat . | . . . Robot Hacks Applied . | . . . Relay Couplers Released . | . . . Fabnet Peak Effective % . | . . . Robots Rewired . | . . . Allies Hacked . | . . . Hacks Repelled . | . . . Allies | -11 -10 -10 -------- Run | Yrd Mat Min Total Allies 4 | . . 4 Largest Group 4 | . . 4 Highest-Rated Group 71 | . . 71 Highest-Rated Ally 31 | . . 31 Total Orders . | . . . Ally Attacks 3 | . . 3 Total Damage . | . . . Kills . | . . . Allies Corrupted . | . . . Allies Melted . | . . . Intel | -11 -10 -10 ------- Run | Yrd Mat Min Active Infowar (turns) . | . . . Robot Analysis Total 1 | . 1 . Derelict Logs Recovered 1 | . . 1 Drone Launches . | . . . Drone Recoveries . | . . . Exploration | -11 -10 -10 ------------- Run | Yrd Mat Min Turns Passed 1353 | 66 297 990 Spaces Moved 684 | 49 190 445 Core 10 | 4 . 6 Treads . | . . . Legs 674 | 45 190 439 Wheels . | . . . Hover . | . . . Flight . | . . . Fastest Speed 50 | 50 120 50 Average Speed 118 | 114 120 119 Slowest Speed 120 | 120 120 120 Overloaded Moves . | . . . Propulsion Burnouts . | . . . Robots Hopped . | . . . Potential Cave-ins . | . . . Cave-ins Triggered . | . . . Exploration Rate (%) 45 | 3 40 94 Regions Visited 2 Branch Regions 1 Pre-discovered Areas . | . . . Known Exits Taken . | . . . Unknown Exits Taken 2 | 1 1 . Scrap Searched 1 | . . 1 Spaces Dug . | . . . Terrain Destroyed 19 | . 19 . Melee . | . . . Projectile . | . . . AOE 19 | . 19 . Terrain Rammed . | . . . Walls Destroyed . | . . . Machines Disabled . | . . . Actions | -11 -10 -10 --------- Run | Yrd Mat Min Total 1135 | 56 224 855 Wait 383 | . 10 373 Move 682 | 48 189 445 Hop . | . . . Pick Up 8 | . 2 6 Fast Attach 7 | 6 1 . Attach 1 | . . 1 Detach . | . . . Swap 7 | 1 4 2 Drop 3 | 1 . 2 Fire 43 | . 18 25 Melee . | . . . Ram . | . . . Kick 1 | . . 1 Crush . | . . . Escape Stasis . | . . . Rewire . | . . . Trap . | . . . Miscellaneous . | . . . Route ------- -11/Scrapyard -10/Materials -10/Mines (discovered 2 exits: [*Mat x2]) History --------- Turn | Location | Event 3 | -11/Scrapyard | Discovered new exit (range 15) 67 | -11/Scrapyard | Entered Materials 320 | -10/Materials | Build established: Mutant 357 | -10/Materials | Discovered new exit (range 6) 364 | -10/Materials | Entered Mines 371 | -10/Mines | Received a Rocket Launcher from a helpful Derelict 503 | -10/Mines | Discovered new exit (range 4) 587 | -10/Mines | Assembled infested the area 596 | -10/Mines | Learned 2 Materials zone layouts 1167 | -10/Mines | Discovered new exit (range 8) 1211 | -10/Mines | Received a Mining Laser from a helpful Derelict 1287 | -10/Mines | Assisted by bots powering up and referring to "LRC-V3" 1348 | -10/Mines | Core integrity fell below 50% 1351 | -10/Mines | Released all parts (2) 1354 | -10/Mines | Core integrity fell below 20% 1354 | -10/Mines | Destroyed by D-53 Grenadier with Mini Grenade Launcher Last Messages --------------- 01343_ T-07 Excavator destroyed. 01343_ R-06 Scavenger destroyed. 01345_ The unstable cave ceiling collapses. 01345_ K-01 Serf collects debris. 01345_ Ion Engine destroyed. 01347_ Trooper 1b destroyed. 01347_ 4E-HEU(g) destroyed. 01347_ K-01 Serf destroyed. 01347_ T-07 Excavator destroyed. 01348_ The unstable cave ceiling collapses. 01349_ Med. Laser destroyed. 01350_ The unstable cave ceiling collapses. 01351_ Aluminum Leg destroyed. 01351_ Sml. Laser destroyed. 01351_ Aluminum Leg destroyed. 01351_ Released Sml. Storage Unit. 01351_ Released Imp. Heat Sink. 01352_ The unstable cave ceiling collapses. 01352_ U-05 Engineer builds a Wall. 01353_ The unstable cave ceiling collapses. Map ----- +----------------------------------------------------+ | #???### ####?# #?###??## ##????????## #??????? | | ##### ### #??????# #??????### ##??????? | | ## ## #?????## #???#### ##???????? | | # ## #?????# ##?## #????????? | | #?# #?????# #?# ##????????? | | #### #?????## #?# ##????????? | | #??????## ##?## #????????# | | ### ##???????####???# #???????## | | ##?# #???????????##### ##?????## | | # ## ##?? ##??????????# #?????# | | ####### #### #??????????# #?????## | | ??????# #???????# #??????## | | ??????# #### #??????### #???????# | | ?###### #??## ?????????# ##???????? | | ## # #???## ? #????????# ## ##????????? | | # < ###### #???????## ######?????????? | | # #??????# #??????????????? | | # ## #?????# #??????????????? | | # ??## ####### #?????# #???######?????? | | # ????### #?????# ???????## ##?########?????? | | #???????# #????## #???????# ##??? # ###????? | | # ####### #???## ######## g###### # #????? | | # #??## # # t ur # #????? | | ?######## ##?# ### ######??? | | ???????## ### r # % #??? | | ???????# ## @ ! # #### #### | | ??????## #?# [% ]![ # # % ## | | ???#### ### dd! # ## < # # #### | | ??## # ## ??? | | ??# t k ## ## % ""??? | | ??# ### ?## =%### ## ""??? | | ??## ## ### ???### = ### ### % ??? | | ???###### ### #?????## ###??# < ?? | | ????????# #?# #???????# ###? # ?? | | ????????# #?## ###????????# #?#########?? | | ????????# ##??######??????????# ##??????????? | | ????????# ########???#????????# #??????????? | | ???????## #???????#### ##??????????? | | ??????## ########??? ???????????# ##???######### | | ??????# #?????????? ???????????# #????# | | ??????# ##????????# #??????????# ###### | | ??##### ###??????# #??????????# | | ??# ##?????# #??????????####%### | | ??# ##????# #?????????????# #?#""" | | ??######## ##???# #?????????????# #?#""" | | ?????###?## #???# #????????###### #?#""" | | ????## #?# #???# #????????# #?# | | ????# ## ##???# #????????# ######?######### | | ????# #???## ##???????# #??????????????? | | ????## """ ##### ##??????# #??????????????? | +----------------------------------------------------+ Best States ------------- Heat Dissipation 39 Energy Generation 10 Energy Capacity 250 Matter Stores 300 Matter Capacity 300 Sight Range 16 Terrain Scan Density 10 Evasion (%) 55 Item Schematics ----------------- None Robot Schematics ------------------ None Fabricated ------------ Nothing Repaired ---------- Nothing Studied --------- None Alien Tech Used ----------------- None Achievements -------------- None Challenges ------------ None Game ------ Seed RainbowArmageddonNanovents Manual? 0 Play Time 00:08:09 Cumulative 666.3 hours Start 2026.07.11 @ 09:02:35 End 2026.07.11 @ 09:07:54 Sessions 1 Manual Loads 0 Difficulty Rogue Special Mode None Game No. 446 Rogue 446 Adventurer 0 Explorer 0 Win Type - Total 38 Types 25/1/6/6/0/0/0/0/0/0 Lore% 73 Gallery% 70 Achievement% 53 Wizard Run 0 Options --------- Layout 0 ASCII 1 Keyboard 0 Movement Numpad Keybinds 0 Fullscreen 2 Font 18/Smallcaps Map View 112x70 Zoom Use 0% Tactical HUD 1 Map Filters NONE Filters NONE Steam 1 RUN: c0d29781-ad81-4029-867d-52a51eba9e87